{"text_format":"3","workbook":"xlsx","n_sheets":12,"sheets":["Consignes","Identification du déclarant","Récapitulatif global","Rémunérations","Local","Envois","Syllabi","Déplacements","Ruches","Pub. légales","Assurances","Listes déroulantes"],"not_rendered":{"images":1,"defined_names":25,"comments":10},"read":"whole","date_system":"1900"}

{"sheet":"Consignes","index":0,"n_rows":29,"n_cols":1,"rows_kept":29}
["Formation en apiculture"]
[]
["DECLARATIONS DE CREANCE"]
[]
["CONSIGNES POUR LE REMPLISSAGE DES TABLEAUX JUSTIFICATIFS LIES AUX DEPENSES"]
[]
["I. Préalables"]
[]
["Abréviations utilisées : CB : cours de base / CI : cours d'initiation / CS : cours de spécialiation / DC : déclaration de créance"]
[]
["Où trouver ce formulaire ? Sur la page web https://agriculture.wallonie.be/formation-en-apiculture. Dans la partie « Déclarations de créance », cliquer sur le classeur Excel « Formation apiculture_CB-CI-CS_Tableaux introduction DC_Dépenses .xltx ». Ouvrir le fichier. Le modèle génère un classeur vierge."]
[]
["Note : toujours repartir d’un document fraîchement téléchargé (ne jamais repartir d’un modèle enregistré sur votre ordinateur) car les documents peuvent varier d’une année à l’autre (actualisation sur le site)."]
[]
["Enregistrer le nouveau classeur sur votre ordinateur (par exemple, sous le nom initial + les abréviations de votre organisme). Exemple pour l'association \"Les Abeilles heureuses\" (LAH) : \"Formation apiculture_CB-CI-CS_Tableaux introduction DC_Dépenses1\" devient \"Formation apiculture_CB-CI-CS_Tableaux introduction DC_Dépenses_LAH\"."]
[]
["II. Comment remplir les tableaux ?"]
[]
["1° Dans la feuille \"Identification du déclarant\", remplissez les 4 cases en rouge en utilisant les 3 listes déroulantes (identification) + la cellule jj/mm/aa-jj/mm/aa (période couverte par les dépenses exposées, période de déroulement effectif du cours) . Ces données seront reprises automatiquement dans les 9 feuilles suivantes (récapitulatif global et rubriques des dépenses) ; elles ne doivent donc être introduites qu’une seule fois. En outre, les montants du tableau récapitulatif global des dépenses ne doivent pas être introduits : ils sont récupérés automatiquement des feuilles des rubriques. "]
[]
["2° Après avoir indiqué les quatre informations requises dans la feuille \"Identification du déclarant\", il suffit d’introduire les dépenses dans les tableaux des rubriques adéquates. Les totaux sont automatiques, ainsi que certaines multiplications. Pour les frais de déplacements, une liste déroulante vous permet de choisir l’indemnité kilométrique correspondant à la période au cours de laquelle le déplacement a été effectué. Pour certaines rubriques, la colonne « Libellé » comprend un commentaire qui renvoie vers la liste des dépenses éligibles figurant au bas du tableau, sous la colonne « Libellé »."]
[]
["3° Sur base du tableau « Déroulé du cours » (volet « justificatifs liés à l’organisation des cours ») reprenant les prestations des formateurs, remplir la feuille « Rémunérations »."]
[]
["4° introduire les dépenses dans les feuilles du classeur Excel correspondant aux rubriques adéquates."]
[]
["III. Comment imprimer les tableaux ?"]
[]
[" Imprimer en recto et uniquement les feuilles correspondant aux rubriques dans lesquelles apparaissent des dépenses (économie de papier)."]

{"sheet":"Identification du déclarant","index":1,"n_rows":14,"n_cols":1,"rows_kept":14,"merged":[[0,0,0,1],[2,0,2,1],[4,0,4,1],[6,0,6,1],[7,0,7,1],[8,0,8,1],[9,0,9,1],[10,0,10,1],[11,0,11,1],[12,0,12,1],[13,0,13,1]]}
["Formation en apiculture"]
[]
["DECLARATION DE CREANCE"]
[]
["IDENTIFICATION DU DECLARANT"]
[]
["Année de l'appel à projets - Date de l'arrêté de subvention - N° de dossier :"]
["Liste déroulante"]
["Dénomination du centre de formation :"]
["Liste déroulante"]
["Type de cours :"]
["Liste déroulante"]
["Période couverte par la déclaration de créance :"]
["jj/mm/aa-jj/mm/aa"]

{"sheet":"Récapitulatif global","index":2,"n_rows":46,"n_cols":3,"rows_kept":46,"merged":[[9,1,9,2],[11,1,11,2],[13,1,13,2],[15,1,15,2],[17,1,17,2],[19,1,19,2],[21,1,21,2],[24,2,26,2]]}
[]
[]
[]
[]
[]
[null,"Département du Développement, de la Ruralité, des Cours d’Eau et du Bien-être animal"]
[null,"Direction de la Qualité et du Bien-être animal"]
[null,"Chaussée de Louvain 14 5000 NAMUR  - Tél. : 081 64 96 08 - Fax : 081 64 95 44"]
[]
[null,"Formation en apiculture"]
[]
[null,"DECLARATION DE CREANCE"]
[]
[null,"II.1. Tableau récapitulatif global des dépenses"]
[]
[null,"Année de l'appel à projets - Date de l'arrêté de subvention - N° de dossier :"]
[null,{"$f":"IF('Identification du déclarant'!A8=\"Liste déroulante\",\"Remplissez la feuille d'identification du déclarant\",'Identification du déclarant'!A8)","v":"Remplissez la feuille d'identification du déclarant"}]
[null,"Dénomination du centre de formation :"]
[null,{"$f":"IF('Identification du déclarant'!A10=\"Liste déroulante\",\"Remplissez la feuille d'identification du déclarant\",'Identification du déclarant'!A10)","v":"Remplissez la feuille d'identification du déclarant"}]
[null,"Type de cours :"]
[null,{"$f":"IF('Identification du déclarant'!A12=\"Liste déroulante\",\"Remplissez la feuille d'identification du déclarant\",'Identification du déclarant'!A12)","v":"Remplissez la feuille d'identification du déclarant"}]
[null,"Période couverte par la déclaration de créance :"]
[null,{"$f":"IF('Identification du déclarant'!A14=\"jj/mm/aa-jj/mm/aa\",\"Remplissez la feuille d'identification du déclarant\",'Identification du déclarant'!A14)","v":"Remplissez la feuille d'identification du déclarant"}]
[]
[null,null,"Montant des dépenses exposées (€)"]
[null,"Rubrique des dépenses éligibles à la subvention"]
[]
[]
[null,"I. Rémunérations des formateurs théoriques et pratiques (1)",{"$f":"Rémunérations!E44","v":{"v":0,"d":"0.00"}}]
[]
[]
[null,"II. Frais de fonctionnement"]
[]
[null,"Location du local et charges y afférentes",{"$f":"Local!G44","v":{"v":0,"d":"0.00"}}]
[null,"Frais d’envois",{"$f":"Envois!G44","v":{"v":0,"d":"0.00"}}]
[null,"Frais de copies, impression des syllabi",{"$f":"Syllabi!G44","v":{"v":0,"d":"0.00"}}]
[null,"Frais de déplacement des formateurs",{"$f":"Déplacements!I44+Déplacements!I65+Déplacements!I86","v":{"v":0,"d":"0.00"}}]
[null,"Frais de fonctionnement liés aux ruches du rucher pédagogique",{"$f":"Ruches!G44","v":{"v":0,"d":"0.00"}}]
[null,"Frais de publications légales liés à la création de l’asbl",{"$f":"'Pub. légales'!G44","v":{"v":0,"d":"0.00"}}]
[null,"Frais d’assurance liés aux cours et aux conférences",{"$f":"Assurances!G44","v":{"v":0,"d":"0.00"}}]
[]
[]
[null,"Sous-total frais de fonctionnement (2)",{"$f":"SUM(C34:C40)","v":{"v":0,"d":"0.00"}}]
[]
[]
[null,"TOTAL (1) + (2)",{"$f":"C29+C43","v":{"v":0,"d":"0.00"}}]

{"sheet":"Rémunérations","index":3,"n_rows":44,"n_cols":5,"rows_kept":44,"merged":[[9,1,9,4],[11,1,11,4],[13,1,13,4],[15,1,15,2],[17,1,17,2],[21,1,21,2]]}
[]
[]
[]
[]
[]
[null,"Département du Développement, de la Ruralité, des Cours d’Eau et du Bien-être animal"]
[null,"Direction de la Qualité et du Bien-être animal"]
[null,"Chaussée de Louvain 14 5000 NAMUR  - Tél. : 081 64 96 08 - Fax : 081 64 95 44"]
[]
[null,"Formation en apiculture"]
[]
[null,"DECLARATION DE CREANCE"]
[]
[null,"II.2. Tableau récapitulatif des frais de rémunérations"]
[]
[null,"Année de l'appel à projets - Date de l'arrêté de subvention - N° de dossier :"]
[null,{"$f":"IF('Identification du déclarant'!A8=\"Liste déroulante\",\"Remplissez la feuille d'identification du déclarant\",'Identification du déclarant'!A8)","v":"Remplissez la feuille d'identification du déclarant"}]
[null,"Dénomination du centre de formation :"]
[null,{"$f":"IF('Identification du déclarant'!A10=\"Liste déroulante\",\"Remplissez la feuille d'identification du déclarant\",'Identification du déclarant'!A10)","v":"Remplissez la feuille d'identification du déclarant"}]
[null,"Type de cours :"]
[null,{"$f":"IF('Identification du déclarant'!A12=\"Liste déroulante\",\"Remplissez la feuille d'identification du déclarant\",'Identification du déclarant'!A12)","v":"Remplissez la feuille d'identification du déclarant"}]
[null,"Période couverte par la déclaration de créance :"]
[null,{"$f":"IF('Identification du déclarant'!A14=\"jj/mm/aa-jj/mm/aa\",\"Remplissez la feuille d'identification du déclarant\",'Identification du déclarant'!A14)","v":"Remplissez la feuille d'identification du déclarant"}]
[]
[]
[null,"Nom et prénom du conférencier ou formateur","Nombre de prestations","Nombre d'heures prestées","Montant total (€)"]
[]
[{"$nulls":4},{"$f":"IF(D28=\"\", \"\",D28*43)","v":""}]
[{"$nulls":4},""]
[{"$nulls":4},""]
[{"$nulls":4},""]
[{"$nulls":4},""]
[{"$nulls":4},""]
[{"$nulls":4},""]
[{"$nulls":4},""]
[{"$nulls":4},""]
[{"$nulls":4},""]
[{"$nulls":4},""]
[{"$nulls":4},""]
[{"$nulls":4},""]
[{"$nulls":4},""]
[{"$nulls":4},""]
[]
[null,"TOTAL",null,{"$f":"SUM(D28:D42)","v":{"v":0,"d":"0.00"}},{"$f":"SUM(E28:E42)","v":{"v":0,"d":"0.00"}}]

{"sheet":"Local","index":4,"n_rows":56,"n_cols":7,"rows_kept":56,"merged":[[9,1,9,6],[10,1,10,6],[11,1,11,6],[12,1,12,6],[13,1,13,6],[14,1,14,6],[17,1,17,2],[19,1,19,2],[21,1,21,2],[24,6,26,6],[49,4,51,4]]}
[]
[]
[]
[]
[]
[null,"Département du Développement, de la Ruralité, des Cours d’Eau et du Bien-être animal"]
[null,"Direction de la Qualité et du Bien-être animal"]
[null,"Chaussée de Louvain 14 5000 NAMUR  - Tél. : 081 64 96 08 - Fax : 081 64 95 44"]
[]
[null,"Formation en apiculture"]
[]
[null,"DECLARATION DE CREANCE"]
[]
[null,"II.3. Tableau récapitulatif des frais de location du local et charges y afférentes"]
[]
[null,"Année de l'appel à projets - Date de l'arrêté de subvention - N° de dossier :"]
[null,{"$f":"IF('Identification du déclarant'!A8=\"Liste déroulante\",\"Remplissez la feuille d'identification du déclarant\",'Identification du déclarant'!A8)","v":"Remplissez la feuille d'identification du déclarant"}]
[null,"Dénomination du centre de formation :"]
[null,{"$f":"IF('Identification du déclarant'!A10=\"Liste déroulante\",\"Remplissez la feuille d'identification du déclarant\",'Identification du déclarant'!A10)","v":"Remplissez la feuille d'identification du déclarant"}]
[null,"Type de cours :"]
[null,{"$f":"IF('Identification du déclarant'!A12=\"Liste déroulante\",\"Remplissez la feuille d'identification du déclarant\",'Identification du déclarant'!A12)","v":"Remplissez la feuille d'identification du déclarant"}]
[null,"Période couverte par la déclaration de créance :"]
[null,{"$f":"IF('Identification du déclarant'!A14=\"jj/mm/aa-jj/mm/aa\",\"Remplissez la feuille d'identification du déclarant\",'Identification du déclarant'!A14)","v":"Remplissez la feuille d'identification du déclarant"}]
[]
[{"$nulls":6},"Montant à rembourser (€)"]
[null,"Date","Fournisseur","N° facture","Libellé","N° preuve paiement"]
{"$rows_empty":17}
[null,"TOTAL",{"$nulls":4},{"$f":"SUM(G28:G42)","v":{"v":0,"d":"0.00"}}]
[]
[]
[{"$nulls":4},"Dépenses éligibles :"]
[{"$nulls":4},"Location du local (et du rucher)"]
[{"$nulls":4},"Charges liées au local :"]
[{"$nulls":4},"Eau, gaz, électricité, chauffage, nettoyage (éventuellement sur base d'un forfait par heure de cours, à valider par la Direction de la Qualité)"]
[]
[]
[{"$nulls":4},"Assurances"]
[{"$nulls":4},"Charges liées au rucher :"]
[{"$nulls":4},"Entretien des abords (tonte, débroussaillage)"]
[{"$nulls":4},"Assurances"]

{"sheet":"Envois","index":5,"n_rows":47,"n_cols":7,"rows_kept":47,"merged":[[9,1,9,6],[10,1,10,6],[11,1,11,6],[12,1,12,6],[13,1,13,6],[14,1,14,6],[17,1,17,2],[19,1,19,2],[21,1,21,2],[24,6,26,6],[46,4,50,4]]}
[]
[]
[]
[]
[]
[null,"Département du Développement, de la Ruralité, des Cours d’Eau et du Bien-être animal"]
[null,"Direction de la Qualité et du Bien-être animal"]
[null,"Chaussée de Louvain 14 5000 NAMUR  - Tél. : 081 64 96 08 - Fax : 081 64 95 44"]
[]
[null,"Formation en apiculture"]
[]
[null,"DECLARATION DE CREANCE"]
[]
[null,"II.4. Tableau récapitulatif des frais d'envois"]
[]
[null,"Année de l'appel à projets - Date de l'arrêté de subvention - N° de dossier :"]
[null,{"$f":"IF('Identification du déclarant'!A8=\"Liste déroulante\",\"Remplissez la feuille d'identification du déclarant\",'Identification du déclarant'!A8)","v":"Remplissez la feuille d'identification du déclarant"}]
[null,"Dénomination du centre de formation :"]
[null,{"$f":"IF('Identification du déclarant'!A10=\"Liste déroulante\",\"Remplissez la feuille d'identification du déclarant\",'Identification du déclarant'!A10)","v":"Remplissez la feuille d'identification du déclarant"}]
[null,"Type de cours :"]
[null,{"$f":"IF('Identification du déclarant'!A12=\"Liste déroulante\",\"Remplissez la feuille d'identification du déclarant\",'Identification du déclarant'!A12)","v":"Remplissez la feuille d'identification du déclarant"}]
[null,"Période couverte par la déclaration de créance :"]
[null,{"$f":"IF('Identification du déclarant'!A14=\"jj/mm/aa-jj/mm/aa\",\"Remplissez la feuille d'identification du déclarant\",'Identification du déclarant'!A14)","v":"Remplissez la feuille d'identification du déclarant"}]
[]
[{"$nulls":6},"Montant à rembourser (€)"]
[null,"Date","Fournisseur","N° facture","Libellé","N° preuve paiement"]
{"$rows_empty":17}
[null,"TOTAL",{"$nulls":4},{"$f":"SUM(G28:G42)","v":{"v":0,"d":"0.00"}}]
[]
[]
[{"$nulls":4},"Rem. : y compris les frais liés à un abonnement internet ou à l'hébergement d'un site, pour autant qu'il soit utile dans la communication aux élèves pour l'organisation du cours "]

{"sheet":"Syllabi","index":6,"n_rows":47,"n_cols":7,"rows_kept":47,"merged":[[9,1,9,6],[10,1,10,6],[11,1,11,6],[12,1,12,6],[13,1,13,6],[17,1,17,2],[19,1,19,2],[21,1,21,2],[24,6,26,6],[46,4,50,4]]}
[]
[]
[]
[]
[]
[null,"Département du Développement, de la Ruralité, des Cours d’Eau et du Bien-être animal"]
[null,"Direction de la Qualité et du Bien-être animal"]
[null,"Chaussée de Louvain 14 5000 NAMUR  - Tél. : 081 64 96 08 - Fax : 081 64 95 44"]
[]
[null,"Formation en apiculture"]
[]
[null,"DECLARATION DE CREANCE"]
[]
[null,"II.5. Tableau récapitulatif des frais de copies, impression des syllabi"]
[]
[null,"Année de l'appel à projets - Date de l'arrêté de subvention - N° de dossier :"]
[null,{"$f":"IF('Identification du déclarant'!A8=\"Liste déroulante\",\"Remplissez la feuille d'identification du déclarant\",'Identification du déclarant'!A8)","v":"Remplissez la feuille d'identification du déclarant"}]
[null,"Dénomination du centre de formation :"]
[null,{"$f":"IF('Identification du déclarant'!A10=\"Liste déroulante\",\"Remplissez la feuille d'identification du déclarant\",'Identification du déclarant'!A10)","v":"Remplissez la feuille d'identification du déclarant"}]
[null,"Type de cours :"]
[null,{"$f":"IF('Identification du déclarant'!A12=\"Liste déroulante\",\"Remplissez la feuille d'identification du déclarant\",'Identification du déclarant'!A12)","v":"Remplissez la feuille d'identification du déclarant"}]
[null,"Période couverte par la déclaration de créance :"]
[null,{"$f":"IF('Identification du déclarant'!A14=\"jj/mm/aa-jj/mm/aa\",\"Remplissez la feuille d'identification du déclarant\",'Identification du déclarant'!A14)","v":"Remplissez la feuille d'identification du déclarant"}]
[]
[{"$nulls":6},"Montant à rembourser (€)"]
[null,"Date","Fournisseur","N° facture","Libellé","N° preuve paiement"]
{"$rows_empty":17}
[null,"TOTAL",{"$nulls":4},{"$f":"SUM(G28:G42)","v":{"v":0,"d":"0.00"}}]
[]
[]
[{"$nulls":4},"Rem. :  y compris les livres ou autre support didactique du même type distribués aux élèves, pour autant que leur éligibilité ait été approuvée préalablement (sur demande) par la Direction de la Qualité"]

{"sheet":"Déplacements","index":7,"n_rows":86,"n_cols":10,"rows_kept":86,"merged":[[9,1,9,8],[10,1,10,8],[11,1,11,8],[12,1,12,8],[13,1,13,8],[14,1,14,8],[15,1,15,2],[17,1,17,2],[19,1,19,2],[21,1,21,2],[24,4,26,4],[24,5,26,5],[24,6,26,6],[24,7,26,7],[45,4,47,4],[45,5,47,5],[45,6,47,6],[45,7,47,7],[66,4,68,4],[66,5,68,5],[66,6,68,6],[66,7,68,7]]}
[]
[]
[]
[]
[]
[null,"Département du Développement, de la Ruralité, des Cours d’Eau et du Bien-être animal"]
[null,"Direction de la Qualité et du Bien-être animal"]
[null,"Chaussée de Louvain 14 5000 NAMUR  - Tél. : 081 64 96 08 - Fax : 081 64 95 44"]
[]
[null,"Formation en apiculture"]
[]
[null,"DECLARATION DE CREANCE"]
[]
[null,"II.6. Tableau récapitulatif des frais de déplacements des formateurs"]
[]
[null,"Année de l'appel à projets - Date de l'arrêté de subvention - N° de dossier :"]
[null,{"$f":"IF('Identification du déclarant'!A8=\"Liste déroulante\",\"Remplissez la feuille d'identification du déclarant\",'Identification du déclarant'!A8)","v":"Remplissez la feuille d'identification du déclarant"}]
[null,"Dénomination du centre de formation :"]
[null,{"$f":"IF('Identification du déclarant'!A10=\"Liste déroulante\",\"Remplissez la feuille d'identification du déclarant\",'Identification du déclarant'!A10)","v":"Remplissez la feuille d'identification du déclarant"}]
[null,"Type de cours :"]
[null,{"$f":"IF('Identification du déclarant'!A12=\"Liste déroulante\",\"Remplissez la feuille d'identification du déclarant\",'Identification du déclarant'!A12)","v":"Remplissez la feuille d'identification du déclarant"}]
[null,"Période couverte par la déclaration de créance :"]
[null,{"$f":"IF('Identification du déclarant'!A14=\"jj/mm/aa-jj/mm/aa\",\"Remplissez la feuille d'identification du déclarant\",'Identification du déclarant'!A14)","v":"Remplissez la feuille d'identification du déclarant"}]
[]
[{"$nulls":4},"Distance Aller-retour","Nombre de trajets","Distance totale","Indemnité kilométrique"]
[null,"Nom et prénom du conférencier ou formateur","Lieu départ","Lieu arrivée",{"$nulls":4},"Montant (€)"]
[]
[{"$nulls":6},{"$f":"IF(E28=\"\",\"\",IF(F28=\"\",\"\",E28*F28))","v":""},null,{"$f":"IF(H28=\"-\",\"\",IF(H28=0,\"\",IF(G28=\"\",\"\",H28*G28)))","v":""},"Voiture :"]
[{"$nulls":6},"",null,{"$f":"IF(H29=\"-\",\"\",IF(H29=0,\"\",IF(G29=\"\",\"\",H29*G29)))","v":""},"01/07/16-30/06/18 : 0,3595 € / km"]
[{"$nulls":6},"",null,"","01/07/18-30/06/19 : 0,3640 € / km"]
[{"$nulls":6},"",null,"","01/07/19-30/06/20 : 0.3713 € / km"]
[{"$nulls":6},"",null,"","01/07/20-30/06/22 : 0.3751 € / km"]
[{"$nulls":6},"",null,"","01/07/22-30/09/22 : 0.4170 € / km"]
[{"$nulls":6},"",null,"","01/10/22-31/12/22 : 0.4201 € / km"]
[{"$nulls":6},"",null,"","01/01/23-31/03/23 : 0.4259 € / km"]
[{"$nulls":6},"",null,"","01/04/23-30/06/23 : 0.4246 € / km"]
[{"$nulls":6},"",null,"","01/07/23-30/09/23 : 0.4237 € / km"]
[{"$nulls":6},"",null,"","01/10/23-31/12/23 : 0.4259 € / km"]
[{"$nulls":6},"",null,"","01/01/24-31/03/24 : 0.4269 € / km"]
[{"$nulls":6},"",null,"","01/04/24-30/06/24 : 0.4265 € / km"]
[{"$nulls":6},"",null,"","01/07/24-30/09/24 : 0.4297 € / km"]
[{"$nulls":6},"",null,"","01/10/24-31/12/24 : 0.4293 € / km"]
[{"$nulls":9},"01/01/25-31/03/25 : 0.4290 € / km"]
[null,"TOTAL page 1",{"$nulls":6},{"$f":"SUM(I28:I42)","v":{"v":0,"d":"0.00"}},"01/04/25-30/06/25 : 0.4320 € / km"]
[{"$nulls":9},"01/07/25-30/09/25 : 0.4309 € / km"]
[{"$nulls":4},"Distance Aller-retour","Nombre de trajets","Distance totale","Indemnité kilométrique",null,"01/10/25-31/12/25 : 0.4312 € / km"]
[null,"Nom et prénom du conférencier ou formateur","Lieu départ","Lieu arrivée",{"$nulls":4},"Montant (€)","01/01/26-31/03/26 : 0.4326 € / km"]
[]
[{"$nulls":6},"",null,"","A partir du 01/04/2025 : rechercher l'indemnité du trimestre concerné sur le site du SPF finances  :"]
[{"$nulls":6},"",null,"","www.bosa.belgium.be/fr"]
[{"$nulls":6},"",null,"","Effectuer une recherche sur \"indemnité kilométrique 202x\" puis cliquer sur le filtre \"Actualités\""]
[{"$nulls":6},"",null,""]
[{"$nulls":6},"",null,"","Vélo : "]
[{"$nulls":6},"",null,""]
[{"$nulls":6},"",null,"","01/07/17-30/09/18 : 0.2510 € / km"]
[{"$nulls":6},"",null,"","01/10/18-31/03/20 : 0.2560 € / km"]
[{"$nulls":6},"",null,"","01/04/20-31/12/22 : 0.2612 € / km"]
[{"$nulls":6},"",null,"","01/01/23-31/12/24 : 0.2700 € / km"]
[{"$nulls":6},"",null,"","01/01/25 à - : 0.3600 € / km"]
[{"$nulls":6},"",null,""]
[{"$nulls":6},"",null,""]
[{"$nulls":6},"",null,""]
[{"$nulls":6},"",null,""]
[]
[null,"TOTAL page 2",{"$nulls":6},{"$f":"SUM(I49:I63)","v":{"v":0,"d":"0.00"}}]
[]
[{"$nulls":4},"Distance Aller-retour","Nombre de trajets","Distance totale","Indemnité kilométrique"]
[null,"Nom et prénom du conférencier ou formateur","Lieu départ","Lieu arrivée",{"$nulls":4},"Montant (€)"]
[]
[{"$nulls":6},"",null,""]
[{"$nulls":6},"",null,""]
[{"$nulls":6},"",null,""]
[{"$nulls":6},"",null,""]
[{"$nulls":6},"",null,""]
[{"$nulls":6},"",null,""]
[{"$nulls":6},"",null,""]
[{"$nulls":6},"",null,""]
[{"$nulls":6},"",null,""]
[{"$nulls":6},"",null,""]
[{"$nulls":6},"",null,""]
[{"$nulls":6},"",null,""]
[{"$nulls":6},"",null,""]
[{"$nulls":6},"",null,""]
[{"$nulls":6},"",null,""]
[]
[null,"TOTAL page 3",{"$nulls":6},{"$f":"SUM(I70:I84)","v":{"v":0,"d":"0.00"}}]

{"sheet":"Ruches","index":8,"n_rows":53,"n_cols":7,"rows_kept":53,"merged":[[9,1,9,6],[10,1,10,6],[11,1,11,6],[12,1,12,6],[13,1,13,6],[14,1,14,6],[17,1,17,2],[19,1,19,2],[21,1,21,2],[24,6,26,6]]}
[]
[]
[]
[]
[]
[null,"Département du Développement, de la Ruralité, des Cours d’Eau et du Bien-être animal"]
[null,"Direction de la Qualité et du Bien-être animal"]
[null,"Chaussée de Louvain 14 5000 NAMUR  - Tél. : 081 64 96 08 - Fax : 081 64 95 44"]
[]
[null,"Formation en apiculture"]
[]
[null,"DECLARATION DE CREANCE"]
[]
[null,"II.7. Tableau récapitulatif des frais de fonctionnement liés aux ruches du rucher pédagogique"]
[]
[null,"Année de l'appel à projets - Date de l'arrêté de subvention - N° de dossier :"]
[null,{"$f":"IF('Identification du déclarant'!A8=\"Liste déroulante\",\"Remplissez la feuille d'identification du déclarant\",'Identification du déclarant'!A8)","v":"Remplissez la feuille d'identification du déclarant"}]
[null,"Dénomination du centre de formation :"]
[null,{"$f":"IF('Identification du déclarant'!A10=\"Liste déroulante\",\"Remplissez la feuille d'identification du déclarant\",'Identification du déclarant'!A10)","v":"Remplissez la feuille d'identification du déclarant"}]
[null,"Type de cours :"]
[null,{"$f":"IF('Identification du déclarant'!A12=\"Liste déroulante\",\"Remplissez la feuille d'identification du déclarant\",'Identification du déclarant'!A12)","v":"Remplissez la feuille d'identification du déclarant"}]
[null,"Période couverte par la déclaration de créance :"]
[null,{"$f":"IF('Identification du déclarant'!A14=\"jj/mm/aa-jj/mm/aa\",\"Remplissez la feuille d'identification du déclarant\",'Identification du déclarant'!A14)","v":"Remplissez la feuille d'identification du déclarant"}]
[]
[{"$nulls":6},"Montant à rembourser (€)"]
[null,"Date","Fournisseur","N° facture","Libellé","N° preuve paiement"]
{"$rows_empty":17}
[null,"TOTAL",{"$nulls":4},{"$f":"SUM(G28:G42)","v":{"v":0,"d":"0.00"}}]
[]
[]
[{"$nulls":4},"Dépenses éligibles :"]
[{"$nulls":4},"Abeilles de remplacement (colonies, nuclei, reines)"]
[{"$nulls":4},"Sirop de nourrissement"]
[{"$nulls":4},"Pâtes de stimulation"]
[{"$nulls":4},"Cires de remplacement"]
[{"$nulls":4},"Cadres de remplacement (cadres, fil)"]
[{"$nulls":4},"Produits de traitement vétérinaires"]

{"sheet":"Pub. légales","index":9,"n_rows":44,"n_cols":7,"rows_kept":44,"merged":[[9,1,9,6],[10,1,10,6],[11,1,11,6],[12,1,12,6],[13,1,13,6],[14,1,14,6],[17,1,17,2],[19,1,19,2],[21,1,21,2],[24,6,26,6]]}
[]
[]
[]
[]
[]
[null,"Département du Développement, de la Ruralité, des Cours d’Eau et du Bien-être animal"]
[null,"Direction de la Qualité et du Bien-être animal"]
[null,"Chaussée de Louvain 14 5000 NAMUR  - Tél. : 081 64 96 08 - Fax : 081 64 95 44"]
[]
[null,"Formation en apiculture"]
[]
[null,"DECLARATION DE CREANCE"]
[]
[null,"II.8. Tableau récapitulatif des frais de publications légales liés à l'a.s.b.l. centre de formation apicole"]
[]
[null,"Année de l'appel à projets - Date de l'arrêté de subvention - N° de dossier :"]
[null,{"$f":"IF('Identification du déclarant'!A8=\"Liste déroulante\",\"Remplissez la feuille d'identification du déclarant\",'Identification du déclarant'!A8)","v":"Remplissez la feuille d'identification du déclarant"}]
[null,"Dénomination du centre de formation :"]
[null,{"$f":"IF('Identification du déclarant'!A10=\"Liste déroulante\",\"Remplissez la feuille d'identification du déclarant\",'Identification du déclarant'!A10)","v":"Remplissez la feuille d'identification du déclarant"}]
[null,"Type de cours :"]
[null,{"$f":"IF('Identification du déclarant'!A12=\"Liste déroulante\",\"Remplissez la feuille d'identification du déclarant\",'Identification du déclarant'!A12)","v":"Remplissez la feuille d'identification du déclarant"}]
[null,"Période couverte par la déclaration de créance :"]
[null,{"$f":"IF('Identification du déclarant'!A14=\"jj/mm/aa-jj/mm/aa\",\"Remplissez la feuille d'identification du déclarant\",'Identification du déclarant'!A14)","v":"Remplissez la feuille d'identification du déclarant"}]
[]
[{"$nulls":6},"Montant à rembourser (€)"]
[null,"Date","Fournisseur","N° facture","Libellé","N° preuve paiement"]
{"$rows_empty":17}
[null,"TOTAL",{"$nulls":4},{"$f":"SUM(G28:G42)","v":{"v":0,"d":"0.00"}}]

{"sheet":"Assurances","index":10,"n_rows":47,"n_cols":7,"rows_kept":47,"merged":[[9,1,9,6],[10,1,10,6],[11,1,11,6],[12,1,12,6],[13,1,13,6],[14,1,14,6],[17,1,17,2],[19,1,19,2],[21,1,21,2],[24,6,26,6],[46,4,50,4]]}
[]
[]
[]
[]
[]
[null,"Département du Développement, de la Ruralité, des Cours d’Eau et du Bien-être animal"]
[null,"Direction de la Qualité et du Bien-être animal"]
[null,"Chaussée de Louvain 14 5000 NAMUR  - Tél. : 081 64 96 08 - Fax : 081 64 95 44"]
[]
[null,"Formation en apiculture"]
[]
[null,"DECLARATION DE CREANCE"]
[]
[null,"II.9. Tableau récapitulatif des frais d'assurance liés aux cours"]
[]
[null,"Année de l'appel à projets - Date de l'arrêté de subvention - N° de dossier :"]
[null,{"$f":"IF('Identification du déclarant'!A8=\"Liste déroulante\",\"Remplissez la feuille d'identification du déclarant\",'Identification du déclarant'!A8)","v":"Remplissez la feuille d'identification du déclarant"}]
[null,"Dénomination du centre de formation :"]
[null,{"$f":"IF('Identification du déclarant'!A10=\"Liste déroulante\",\"Remplissez la feuille d'identification du déclarant\",'Identification du déclarant'!A10)","v":"Remplissez la feuille d'identification du déclarant"}]
[null,"Type de cours :"]
[null,{"$f":"IF('Identification du déclarant'!A12=\"Liste déroulante\",\"Remplissez la feuille d'identification du déclarant\",'Identification du déclarant'!A12)","v":"Remplissez la feuille d'identification du déclarant"}]
[null,"Période couverte par la déclaration de créance :"]
[null,{"$f":"IF('Identification du déclarant'!A14=\"jj/mm/aa-jj/mm/aa\",\"Remplissez la feuille d'identification du déclarant\",'Identification du déclarant'!A14)","v":"Remplissez la feuille d'identification du déclarant"}]
[]
[{"$nulls":6},"Montant à rembourser (€)"]
[null,"Date","Fournisseur","N° facture","Libellé","N° preuve paiement"]
{"$rows_empty":17}
[null,"TOTAL",{"$nulls":4},{"$f":"SUM(G28:G42)","v":{"v":0,"d":"0.00"}}]
[]
[]
[{"$nulls":4},"Uniquement les assurances liées aux élèves (y compris les kits de secours) >>> les assurances liées au local sont à placer dans la rubrique \"Frais liés au local\""]

{"sheet":"Listes déroulantes","index":11,"n_rows":61,"n_cols":4,"rows_kept":61}
["Année_de_l_appel_à_projets","Type_de_cours","Bénéficiaires"]
["Liste déroulante","Liste déroulante","Liste déroulante"]
["Appel à projets 2016 - AM du 23/12/2016 - Dossier n° D32-0324","Cours de base 1ère année","Abeille du Hain a.s.b.l."]
["Appel à projets 2017 - AM du 31/08/2017 - Dossier n° D32-0342","Cours de base seconde année","APIVAL a.s.b.l."]
["Appel à projets 2018 - AM du 26/07/2018 - Dossier n° D32-0375","Cours d'nitiation seul","Association des Apiculteurs de Jodoigne, Incourt et Environs a.s.b.l."]
["Appel à projets 2019 - AM du 18/12/2019 - Dossier n° D32-0434","Cours de spécialisation","BeeQueen a.s.b.l."]
["Appel à projets 2020 - AM du 20/10/2020 - Dossier n° DQBEA-0516",null,"CARI a.s.b.l."]
["Appel à projets 2021 - AM du 06/12/2021 - Dossier n° DQBEA-0541",null,"CEFOR Invest (CEFOR IEPS Namur) a.s.b.l."]
["Appel à projets 2022 - AM du 19/12/2022 - Dossier n° DQBEA-0581",null,"Centre apicole du Château de Seilles, Rucher école et didactique a.s.b.l."]
["Appel à projets 2023 - AM du 21/11/2023 - Dossier n° DQBEA-0624",null,"Centre de Formation apicole des Hauts-Pays a.s.b.l."]
["Appel à projets 2024 - AM du 10/12/2024 - Dossier n° DQBEA-0676",null,"Centre de Recherche d'Insémination et de Sélection de l'Abeille Buckfast a.s.b.l."]
["Appel à projets 2025 - AM du 20/11/2025 - Dossier n° DQBEA-0721",null,"Centre d'Etude et d'Information Apicole de Mons a.s.b.l."]
[2026,null,"Cercle apicole de Rochefort et Environs (CARE) a.s.b.l."]
[2027,null,"Ecole d’Apiculture Namuroise a.s.b.l."]
[2028,null,"Espace de Découverte du Miel et de l'Abeille. Royale Amicale SYLVAIN THIBAUT a.s.b.l."]
[2029,null,"Fédération des Apiculteurs du Brabant wallon (FABW) a.s.b.l."]
[2030,null,"Fédération provinciale d'Apiculture du Luxembourg (FPAL) a.s.b.l."]
[null,null,"Fédération royale des Unions professionnelles apicoles du Hainaut (FRUPAH) a.s.b.l."]
[null,null,"Fédération royale provinciale liégeoise d'Apiculture (FRPLA) a.s.b.l."]
[null,null,"Fédération wallonne de l'Agriculture (FWA) a.s.b.l."]
[null,null,"Imkerwerke Ostbelgien VoG"]
[null,null,"Institut apicole de Charleroi a.s.b.l."]
[null,null,"La Planche d'Envol a.s.b.l."]
[null,null,"L'Abeille arlonaise a.s.b.l."]
[null,null,"L'Api d’amon nos-ôtes a.s.b.l."]
[null,null,"Le Mouchti brabançon a.s.b.l."]
[null,null,"Les Amis des Abeilles - Section apicole de Huy a.s.b.l."]
[null,null,"Les Avettes du Mont des Frênes a.s.b.l."]
[null,null,"Les Babeilles a.s.b.l."]
[null,null,"Les Compagnons de Saint-Ambroise a.s.b.l."]
[null,null,"Les Divines Abeilles - Rucher Ecole de Berloz-Waremme a.s.b.l."]
[null,null,"Les Ruchers du Sud-Luxembourg a.s.b.l."]
[null,null,"Parc naturel Viroin-Hermeton a.s.b.l."]
[null,null,"Rucher Ecole de la Vallée de l’Ourthe et Neblon (REVON) a.s.b.l."]
[null,null,"Rucher Ecole de Tournai a.s.b.l."]
[null,null,"Rucher Ecole du Péruwelzis a.s.b.l."]
[null,null,"Rucher Ecole FRPLA a.s.b.l."]
[null,null,"Rucher expérimental Houille-Lesse-Semois a.s.b.l."]
[null,null,"Section Apicole ApiBrabant a.s.b.l."]
[null,null,"Section apicole de Courcelles a.s.b.l."]
[null,null,"Section apicole Forrières-Wellin a.s.b.l."]
[null,null,"Société apicole de Tenneville a.s.b.l."]
[null,null,"Société apicole mouscronnoise a.s.b.l."]
[null,null,"Société d'Apiculture des Deux-Ourthes a.s.b.l."]
[null,null,"Union des Fédérations d'Apiculture de Wallonie et Bruxelles (UFAWB) a.s.b.l.",{"$f":"COUNTA(C3:C46)","v":44}]
[null,null,"Union royale des Ruchers wallons (URRW) a.s.b.l."]
[null,null,0]
[null,null,0]
[null,null,0]
[null,null,0]
[null,null,0]
[null,null,0]
[null,null,0]
[null,null,0]
[null,null,0]
[null,null,0]
[null,null,0]
[null,null,0]
[null,null,0]
[null,null,0]
[null,null,0]